bitfinex/quotes_BTCUSD_20250803
["timestamp","ask_amount","ask_price","bid_price","bid_amount"]
[1754179834338,0.34,112910.0,112900.0,0.00213]
[1754179834770,0.366636,112910.0,112900.0,0.03218]
[1754179835441,0.37792643,112910.0,112900.0,0.03218]
[1754179837416,0.39179413,112910.0,112900.0,0.03218]
[1754179841624,1.671235,112900.0,112890.0,0.16708]
[1754179842011,1.671235,112900.0,112890.0,0.02692]
[1754179842908,0.372289,112900.0,112880.0,0.17021]
[1754179843116,0.372289,112900.0,112890.0,0.002]
[1754179843545,0.366639,112900.0,112890.0,0.002]
[1754179843815,0.366639,112900.0,112890.0,0.003]
[1754179844041,0.872289,112900.0,112890.0,0.003]
[1754179844249,0.372289,112900.0,112890.0,0.003]
[1754179844459,0.372289,112900.0,112890.0,0.001]
[1754179845375,0.372289,112900.0,112890.0,0.003]
[1754179846271,0.366639,112900.0,112890.0,0.003]
[1754179846484,0.366639,112900.0,112890.0,0.02992]
[1754179847534,0.366639,112900.0,112890.0,0.03305]
[1754179849099,0.366639,112900.0,112890.0,0.03518]
[1754179859931,0.372949,112900.0,112890.0,0.003]
[1754179860361,0.366639,112900.0,112890.0,0.003]
[1754179862817,0.366639,112900.0,112890.0,0.02901]
[1754179863948,2.07099505,112900.0,112890.0,0.003]
[1754179864667,2.1681479,112900.0,112890.0,0.003]
[1754179864885,2.07931034,112900.0,112890.0,0.003]
[1754179865114,2.07931034,112900.0,112880.0,0.12029938]
[1754179865348,2.157505,112890.0,112880.0,0.12029938]
[1754179865584,2.18431605,112890.0,112880.0,0.12029938]
[1754179865819,2.21127923,112890.0,112880.0,0.12029938]
[1754179866043,2.22515038,112890.0,112880.0,0.12029938]
[1754179866490,2.44602909,112890.0,112880.0,0.12029938]
[1754179866712,2.41062644,112890.0,112880.0,0.12029938]
[1754179867156,2.43077592,112890.0,112880.0,0.12029938]
[1754179867376,2.43177592,112890.0,112880.0,0.12029938]
[1754179868026,2.41262644,112890.0,112880.0,0.12029938]
[1754179868242,2.42924471,112890.0,112880.0,0.12029938]
[1754179868677,2.42824471,112890.0,112880.0,0.12029938]
[1754179868900,2.42724471,112890.0,112880.0,0.12029938]
[1754179869159,2.42824471,112890.0,112880.0,0.12029938]
[1754179869369,2.41162644,112890.0,112880.0,0.12029938]
[1754179870246,2.41262644,112890.0,112880.0,0.12029938]
[1754179870457,2.42922369,112890.0,112880.0,0.12029938]
[1754179870693,2.25206008,112890.0,112880.0,0.12029938]
[1754179871594,2.22524903,112890.0,112880.0,0.12029938]
[1754179872460,2.22522994,112890.0,112880.0,0.12029938]
[1754179872923,2.20863269,112890.0,112880.0,0.12029938]
[1754179873149,2.22521926,112890.0,112880.0,0.12029938]
[1754179873363,2.20863269,112890.0,112880.0,0.12029938]
[1754179874941,2.23528269,112890.0,112880.0,0.12029938]
[1754179875155,2.23520269,112890.0,112880.0,0.12029938]
[1754179879552,2.25176986,112890.0,112880.0,0.12029938]
[1754179880639,0.58053486,112890.0,112880.0,0.12029938]
[1754179880884,2.25176986,112890.0,112880.0,0.12029938]
[1754179881326,2.42892337,112890.0,112880.0,0.12029938]
[1754179881554,2.45573442,112890.0,112880.0,0.12029938]
[1754179881779,2.47967752,112890.0,112880.0,0.12029938]
[1754179881960,0.80844252,112890.0,112880.0,0.12029938]
[1754179882217,2.47967752,112890.0,112880.0,0.12029938]
[1754179883954,2.45573442,112890.0,112880.0,0.12029938]
[1754179885052,0.78449942,112890.0,112880.0,0.12029938]
[1754179885280,2.45573442,112890.0,112880.0,0.12029938]
[1754179887489,2.47483526,112890.0,112880.0,0.12029938]
[1754179889939,2.47486066,112890.0,112880.0,0.12029938]
[1754179890418,2.49230968,112890.0,112880.0,0.12029938]
[1754179891658,2.51569866,112890.0,112880.0,0.12029938]
[1754179891869,3.07820986,112890.0,112880.0,0.12029938]
[1754179892083,3.08620477,112890.0,112880.0,0.11472105]
[1754179892298,3.28620477,112890.0,112880.0,0.11472105]
[1754179892503,3.35594149,112890.0,112880.0,0.11472105]
[1754179892941,3.32400598,112890.0,112880.0,0.11472105]
[1754179893359,3.39001665,112890.0,112880.0,0.11472105]
[1754179893549,3.38901665,112890.0,112880.0,0.11472105]
[1754179893773,3.37287482,112890.0,112880.0,0.11472105]
[1754179893981,3.39503364,112890.0,112880.0,0.11472105]
[1754179894196,3.32202024,112890.0,112880.0,0.10583801]
[1754179894413,3.3296522,112890.0,112880.0,0.10583801]
[1754179894624,3.3326522,112890.0,112880.0,0.09695497]
[1754179895073,3.3326522,112890.0,112880.0,0.08807193]
[1754179895282,3.35183741,112890.0,112880.0,0.08807193]
[1754179895502,3.35183741,112890.0,112880.0,0.07918889]
[1754179895936,3.39972256,112890.0,112880.0,0.07030585]
[1754179896155,3.39972256,112890.0,112880.0,0.03937008]
[1754179896360,3.39972256,112890.0,112880.0,0.02083704]
[1754179896570,3.38585141,112890.0,112880.0,0.01583704]
[1754179896782,3.38585141,112890.0,112880.0,0.006954]
[1754179897232,2.27868402,112880.0,112870.0,4.778e-05]
[1754179897454,2.61851262,112880.0,112870.0,4.778e-05]
[1754179897658,2.62398262,112880.0,112870.0,4.778e-05]
[1754179898073,2.80116192,112880.0,112870.0,4.778e-05]
[1754179898951,2.66344192,112880.0,112870.0,4.778e-05]
[1754179899170,2.57188087,112880.0,112870.0,0.02783778]
[1754179899392,2.44059429,112880.0,112870.0,0.03308778]
[1754179899618,2.11760356,112880.0,112870.0,0.03308778]
[1754179899863,2.47505258,112880.0,112870.0,0.03308778]
[1754179900979,1.76815328,112880.0,112870.0,0.03308778]
[1754179901201,1.90897932,112880.0,112870.0,0.03308778]
[1754179901421,2.50353979,112880.0,112870.0,0.03308778]
[1754179901659,2.16353979,112880.0,112870.0,0.03308778]
[1754179901890,2.50053979,112880.0,112870.0,0.03308778]
[1754179902136,2.50453979,112880.0,112870.0,0.03308778]
[1754179903270,2.53119479,112880.0,112870.0,0.03308778]
[1754179904511,2.11191432,112880.0,112870.0,0.03308778]
[1754179904723,2.2341453,112880.0,112870.0,0.03308778]
[1754179906356,2.2321453,112880.0,112870.0,0.03308778]
[1754179906596,2.2301453,112880.0,112870.0,0.03308778]
[1754179906829,2.2321453,112880.0,112870.0,0.03308778]
[1754179907054,2.32098286,112880.0,112870.0,0.03308778]
[1754179907545,2.2321453,112880.0,112870.0,0.03308778]
[1754179908467,0.5609103,112880.0,112870.0,0.03308778]
[1754179908672,2.0924653,112880.0,112870.0,0.03308778]
[1754179908905,2.2321053,112880.0,112870.0,0.03308778]
[1754179909638,2.0924653,112880.0,112870.0,0.03308778]
[1754179909918,2.32094286,112880.0,112870.0,0.03308778]
[1754179910130,2.02199776,112880.0,112870.0,0.03308778]
[1754179910553,2.02199776,112880.0,112870.0,0.00908778]
[1754179911460,1.88235776,112880.0,112870.0,0.00908778]
[1754179911683,1.83949,112880.0,112870.0,0.00908778]
[1754179912107,2.17949,112880.0,112870.0,0.00908778]
[1754179912644,2.17849,112880.0,112870.0,0.00908778]
[1754179912855,1.83849,112880.0,112870.0,0.00908778]
[1754179913066,2.17849,112880.0,112870.0,0.00908778]
[1754179913685,2.17749,112880.0,112870.0,0.00908778]
[1754179913918,2.17749,112880.0,112870.0,0.01108778]
[1754179914349,2.17749,112880.0,112870.0,0.01008778]
[1754179914562,2.17749,112880.0,112870.0,0.01208778]
[1754179917839,2.17749,112880.0,112870.0,0.00308778]
[1754179918604,0.506255,112880.0,112870.0,0.00308778]
[1754179918819,2.17749,112880.0,112870.0,0.00308778]
[1754179919508,2.17745,112880.0,112870.0,0.00308778]
[1754179919741,2.17745,112880.0,112870.0,0.03482778]
[1754179921312,2.03789,112880.0,112870.0,0.03482778]
[1754179921533,2.17741,112880.0,112870.0,0.03482778]
[1754179921763,2.03789,112880.0,112870.0,0.03482778]
[1754179922015,2.17741,112880.0,112870.0,0.03482778]
[1754179923060,2.03789,112880.0,112870.0,0.03482778]
[1754179923280,2.17741,112880.0,112870.0,0.03482778]
[1754179924752,2.17741,112880.0,112870.0,0.00282778]
[1754179924965,2.17741,112880.0,112870.0,0.00498778]
[1754179925164,0.506175,112880.0,112870.0,0.00498778]
[1754179925382,2.17741,112880.0,112870.0,0.00498778]
[1754179926835,2.17741,112880.0,112870.0,0.03368778]
[1754179928468,2.03789,112880.0,112870.0,0.03368778]
[1754179928655,2.17737,112880.0,112870.0,0.03368778]
[1754179931339,2.208,112880.0,112870.0,0.03368778]
[1754179931550,0.34,112870.0,112860.0,0.03174]
[1754179931771,0.47944,112870.0,112860.0,0.0339]
[1754179932206,0.51995934,112870.0,112860.0,0.0339]
[1754179932420,0.04051934,112870.0,112860.0,0.0339]
[1754179932628,4.777e-05,112880.0,112860.0,0.12253284]
[1754179932832,4.777e-05,112880.0,112870.0,0.07071198]
[1754179933082,4.777e-05,112880.0,112870.0,0.0339]
[1754179933822,4.777e-05,112880.0,112870.0,0.0379]
[1754179935700,0.0139176,112880.0,112870.0,0.0379]
[1754179938393,0.0139176,112880.0,112870.0,0.0399]
[1754179940534,4.777e-05,112880.0,112870.0,0.0399]
[1754179940772,0.01391849,112880.0,112870.0,0.0399]
[1754179941097,0.04768849,112880.0,112870.0,0.00816]
[1754179941310,0.04454849,112880.0,112870.0,0.00816]
[1754179941511,0.04454849,112880.0,112870.0,0.0399]
[1754179942336,0.07119149,112880.0,112870.0,0.0399]
[1754179943609,0.07119149,112880.0,112870.0,0.0112]
[1754179943850,0.07119149,112880.0,112870.0,0.00816]
[1754179944057,0.07119149,112880.0,112870.0,0.03686]
[1754179944264,0.07119149,112880.0,112870.0,0.00816]
[1754179944685,0.07119149,112880.0,112870.0,0.03686]
[1754179945099,0.07119149,112880.0,112870.0,0.04005]
[1754179945714,0.07119149,112880.0,112870.0,0.00816]
[1754179945945,2.08564649,112880.0,112870.0,0.006]
[1754179946163,2.22496649,112880.0,112870.0,0.006]
[1754179947233,0.55373149,112880.0,112870.0,0.004]
[1754179947436,2.22496649,112880.0,112870.0,0.005]
[1754179948081,2.22496649,112880.0,112870.0,0.001]
[1754179948515,2.22496649,112880.0,112870.0,0.003]
[1754179949085,2.23327344,112880.0,112870.0,0.003]
[1754179950399,2.25943169,112880.0,112870.0,0.003]
[1754179951158,2.25943169,112880.0,112870.0,0.002]
[1754179951397,0.34,112860.0,112840.0,0.10181198]
[1754179951620,0.48254,112860.0,112840.0,0.10181198]
[1754179951854,0.02845,112850.0,112840.0,0.10181198]
[1754179952115,0.026652,112850.0,112840.0,0.10394198]
[1754179952717,0.026652,112850.0,112840.0,0.10594198]
[1754179952921,0.026652,112850.0,112840.0,0.10394198]
[1754179953264,0.026652,112850.0,112840.0,0.19779034]
[1754179953472,0.35387317,112860.0,112840.0,0.19757482]
[1754179953669,0.04051917,112860.0,112850.0,0.0311]
[1754179953875,0.04051917,112860.0,112850.0,0.03323]
[1754179955376,0.04051917,112860.0,112850.0,0.03523]
[1754179956670,0.04051917,112860.0,112850.0,0.03623]
[1754179956876,0.04051917,112860.0,112850.0,0.12486284]
[1754179957036,0.01387317,112860.0,112850.0,0.12707817]
[1754179957253,0.01387317,112860.0,112850.0,0.14452719]
[1754179958082,0.01387317,112860.0,112850.0,0.14252719]
[1754179958261,0.01387317,112860.0,112850.0,0.14652719]
[1754179958521,0.01387317,112860.0,112850.0,0.28359186]
[1754179959389,0.01387317,112860.0,112850.0,0.26614284]
[1754179959737,0.055095,112870.0,112850.0,0.26614284]
[1754179959959,0.055095,112870.0,112860.0,0.0311]
[1754179960159,0.055095,112870.0,112860.0,0.03323]
[1754179961675,0.055095,112870.0,112860.0,0.03423]
[1754179962839,0.055095,112870.0,112860.0,0.03623]
[1754179965938,0.057055,112870.0,112860.0,0.00513]
[1754179966151,0.400275,112870.0,112860.0,0.003]
[1754179969710,0.41414647,112870.0,112860.0,0.003]
[1754179978308,0.41092647,112870.0,112860.0,0.00513]
[1754179978523,0.41092647,112870.0,112860.0,0.03137]
[1754179978733,0.41092647,112870.0,112860.0,0.03436]
[1754179980324,0.38051647,112870.0,112860.0,0.03436]
[1754179980556,0.04051647,112870.0,112860.0,0.19370482]
[1754179980755,0.01387147,112870.0,112860.0,0.21115384]
[1754179982424,0.01387147,112870.0,112860.0,0.14044186]
[1754179982652,0.01387147,112870.0,112860.0,0.14265699]
[1754179983646,0.01387147,112870.0,112860.0,0.14044186]
[1754179989040,0.04046147,112870.0,112860.0,0.26203284]
[1754179989233,0.04251147,112870.0,112860.0,0.26203284]
[1754179989451,0.04251147,112870.0,112860.0,0.23579284]
[1754179989668,0.04251147,112870.0,112860.0,0.23067284]
[1754179989896,0.04566147,112870.0,112860.0,0.23067284]
[1754179991619,0.04251147,112870.0,112860.0,0.23067284]
[1754179992021,0.04251147,112870.0,112860.0,0.26203284]
[1754179992449,0.04051547,112870.0,112860.0,0.26203284]
[1754179995827,0.01387147,112870.0,112860.0,0.26203284]
[1754180014647,0.01387147,112870.0,112860.0,0.12299284]
[1754180014859,0.04503147,112870.0,112860.0,0.23264284]
[1754180015068,0.04189147,112870.0,112860.0,0.23264284]
[1754180015280,0.04189147,112870.0,112860.0,0.26120284]
[1754180015705,0.04189147,112870.0,112860.0,0.12232284]
[1754180015921,0.04503147,112870.0,112860.0,0.23051284]
[1754180016616,0.04503147,112870.0,112860.0,0.003]
[1754180016835,0.04503147,112870.0,112860.0,0.14188]
[1754180017259,0.04503147,112870.0,112860.0,0.003]
[1754180017472,0.41118972,112870.0,112860.0,0.14188]
[1754180017682,0.38503147,112870.0,112860.0,0.14188]
[1754180018963,0.38503147,112870.0,112860.0,0.003]
[1754180019172,0.41118972,112870.0,112860.0,0.003]
[1754180020176,0.38503147,112870.0,112860.0,0.003]
[1754180021231,0.38503147,112870.0,112860.0,0.03355]
[1754180021232,0.38189147,112870.0,112860.0,0.03355]
[1754180021768,0.38189147,112870.0,112860.0,0.00816]
[1754180022966,0.38189147,112870.0,112860.0,0.03355]
[1754180023180,0.35387147,112870.0,112860.0,0.03355]
[1754180023998,0.35387147,112870.0,112860.0,0.12218284]
[1754180024228,0.01387147,112870.0,112860.0,0.12218284]
[1754180025536,0.03989147,112870.0,112860.0,0.12218284]
[1754180026194,0.06653547,112870.0,112860.0,0.12218284]
[1754180027125,0.04051547,112870.0,112860.0,0.12218284]
[1754180028215,0.36602,112880.0,112860.0,0.12218284]
[1754180028426,0.02602,112880.0,112870.0,0.13884]
[1754180028630,0.054664,112880.0,112870.0,0.14083]
[1754180028840,0.054664,112880.0,112870.0,0.16622]
[1754180029062,0.026644,112880.0,112870.0,0.16939]
[1754180029282,0.02602,112900.0,112870.0,0.27768679]
[1754180029490,0.05270579,112900.0,112880.0,0.08863284]
[1754180029705,0.05470579,112900.0,112890.0,0.00199]
[1754180030365,0.05470579,112900.0,112890.0,0.02738]
[1754180030584,0.06857334,112900.0,112890.0,0.02738]
[1754180030809,0.40857334,112900.0,112890.0,0.02738]
[1754180031029,0.40857334,112900.0,112890.0,0.03055]
[1754180031238,0.06857334,112900.0,112890.0,0.03255]
[1754180032108,0.06857334,112900.0,112890.0,0.03355]
[1754180032328,0.06857334,112900.0,112890.0,0.00499]
[1754180033432,0.06857334,112900.0,112890.0,0.003]
[1754180033645,0.07171334,112900.0,112890.0,0.003]
[1754180034285,0.39784579,112900.0,112890.0,0.003]
[1754180037053,0.41784579,112900.0,112890.0,0.003]
[1754180038579,0.43171354,112900.0,112890.0,0.003]
[1754180039035,0.42857354,112900.0,112890.0,0.00507]
[1754180039530,0.42857354,112900.0,112890.0,0.03564]
[1754180040492,0.40055354,112900.0,112890.0,0.03564]
[1754180040939,0.42758354,112900.0,112890.0,0.03564]
[1754180041132,0.06055354,112900.0,112890.0,0.12427284]
[1754180041343,0.40055354,112900.0,112890.0,0.12427284]
[1754180041588,0.40055354,112900.0,112890.0,0.26303284]
[1754180042776,0.42758354,112900.0,112890.0,0.26303284]
[1754180043646,0.42953354,112900.0,112890.0,0.26303284]
[1754180044290,0.42953354,112900.0,112890.0,0.23246284]
[1754180044448,0.41566579,112900.0,112890.0,0.23246284]
[1754180047023,0.41881579,112900.0,112890.0,0.23039284]
[1754180047507,0.04599749,112900.0,112890.0,0.23039284]
[1754180049842,0.01386749,112900.0,112890.0,0.26303284]
[1754180054809,0.01660749,112900.0,112890.0,0.26303284]
[1754180063324,0.01660749,112900.0,112890.0,0.12427284]
[1754180063534,0.04558749,112900.0,112890.0,0.23234284]
[1754180063750,0.04558749,112900.0,112890.0,0.09163284]
[1754180063974,0.04873749,112900.0,112890.0,0.23027284]
[1754180068376,0.04873749,112900.0,112890.0,0.14164]
[1754180068587,0.07537649,112900.0,112890.0,0.14164]
[1754180072192,0.07222649,112900.0,112890.0,0.17429]
[1754180072403,0.04324649,112900.0,112890.0,0.17429]
[1754180078281,0.04324649,112900.0,112890.0,0.26292284]
[1754180078282,0.01660749,112900.0,112890.0,0.26292284]
[1754180080501,0.00274,112900.0,112890.0,0.28037186]
[1754180083704,0.00274,112900.0,112890.0,0.14173186]
[1754180083705,0.02842,112900.0,112890.0,0.14173186]
[1754180083926,0.05962825,112900.0,112890.0,0.23019284]
[1754180084343,0.05962825,112900.0,112890.0,0.003]
[1754180084559,0.05962825,112900.0,112890.0,0.14232]
[1754180084796,0.06235825,112900.0,112890.0,0.003]
[1754180085009,0.0362,112900.0,112890.0,0.003]
[1754180087493,0.05006783,112900.0,112890.0,0.003]
[1754180089732,0.41670683,112900.0,112890.0,0.003]
[1754180091486,0.07670683,112900.0,112890.0,0.003]
[1754180092447,0.04597683,112900.0,112890.0,0.03565]
[1754180092668,0.38597683,112900.0,112890.0,0.03565]
[1754180093413,0.41165683,112900.0,112890.0,0.03565]
[1754180094320,0.399779,112900.0,112890.0,0.03565]
[1754180094991,0.402779,112900.0,112890.0,0.003]
[1754180097184,0.399779,112900.0,112890.0,0.03392]
[1754180097631,0.37115,112900.0,112890.0,0.03392]
[1754180098591,0.38501726,112900.0,112890.0,0.03392]
[1754180098811,0.38715726,112900.0,112890.0,0.003]
[1754180099034,0.39015726,112900.0,112890.0,0.003]
[1754180100437,0.38715726,112900.0,112890.0,0.03392]
[1754180102056,0.38715726,112900.0,112890.0,0.00502]
[1754180102687,0.01933726,112900.0,112890.0,0.19326482]
[1754180103945,0.01933726,112900.0,112890.0,0.12255284]
[1754180104162,0.00547,112900.0,112890.0,0.12476738]
[1754180113483,0.00547,112900.0,112890.0,0.12255284]
[1754180114258,0.03314,112900.0,112890.0,0.26171284]
[1754180114661,0.03528,112900.0,112890.0,0.26171284]
[1754180115240,0.03828,112900.0,112890.0,0.23091284]
[1754180117728,0.05214672,112900.0,112890.0,0.23091284]
[1754180118157,0.04914672,112900.0,112890.0,0.23293284]
[1754180118821,0.04914672,112900.0,112890.0,0.26183284]
[1754180119240,0.04914672,112900.0,112890.0,0.23588284]
[1754180119435,0.04914672,112900.0,112890.0,0.23293284]
[1754180120027,0.05214672,112900.0,112890.0,0.23293284]
[1754180120641,0.04914672,112900.0,112890.0,0.23293284]
[1754180122606,0.04914672,112900.0,112890.0,0.26183284]
[1754180124501,0.04914672,112900.0,112890.0,0.23293284]
[1754180125492,0.05219672,112900.0,112890.0,0.23091284]
[1754180126867,0.04914672,112900.0,112890.0,0.23091284]
[1754180128095,0.04914672,112900.0,112890.0,0.23286284]
[1754180128712,0.05219672,112900.0,112890.0,0.23103284]
[1754180128918,0.05219672,112900.0,112890.0,0.1424]
[1754180129735,0.04914672,112900.0,112890.0,0.14435]
[1754180131642,0.029687,112910.0,112890.0,0.14435]
[1754180131877,0.01588674,112900.0,112890.0,0.17464]
[1754180132882,0.01588674,112900.0,112890.0,0.17264]
[1754180133296,0.01588674,112900.0,112890.0,0.17164]
[1754180133475,0.01588674,112900.0,112890.0,0.16761]
[1754180133700,1.71504174,112900.0,112890.0,0.001]
[1754180133837,2.06726129,112900.0,112890.0,0.003]
[1754180134043,2.06726129,112900.0,112890.0,0.002]
[1754180134246,2.06726129,112900.0,112890.0,0.004]
[1754180134671,2.041175,112900.0,112890.0,0.002]
[1754180135037,2.041175,112900.0,112880.0,0.1392]
[1754180135228,1.699155,112890.0,112880.0,4.779e-05]
[1754180135453,1.701175,112890.0,112880.0,4.779e-05]
[1754180135636,1.698125,112890.0,112880.0,4.779e-05]
[1754180135879,1.698125,112890.0,112880.0,0.02725779]
[1754180136079,1.671235,112890.0,112880.0,0.10299977]
[1754180136286,0.026643,112890.0,112880.0,0.10299977]
[1754180136552,0.026643,112890.0,112880.0,0.10499977]
[1754180136890,0.04051161,112890.0,112880.0,0.10499977]
[1754180137350,0.04051161,112890.0,112880.0,0.10699977]
[1754180139075,0.04051161,112890.0,112880.0,0.14299977]
[1754180139786,0.04051161,112890.0,112880.0,0.07228779]
[1754180141666,0.01386861,112890.0,112880.0,0.16092063]
[1754180141868,0.01386861,112890.0,112880.0,0.16313537]
[1754180144312,0.04158497,112910.0,112880.0,0.16313537]
[1754180144569,0.56645497,112910.0,112890.0,0.16961]
[1754180144894,0.56950497,112910.0,112890.0,0.16961]
[1754180145541,0.57050497,112910.0,112890.0,0.16961]
[1754180145955,0.56950497,112910.0,112890.0,0.16961]
[1754180146169,0.00202,112900.0,112890.0,0.17156]
[1754180149143,0.58032141,112910.0,112890.0,0.17256]
[1754180149358,0.58032141,112910.0,112900.0,0.02721]
[1754180149600,0.58234141,112910.0,112900.0,0.02721]
[1754180151898,0.58334141,112910.0,112900.0,0.02721]
[1754180152319,0.55847141,112910.0,112900.0,0.02916]
[1754180152520,0.55847141,112910.0,112900.0,0.03224]
[1754180152521,0.05645141,112910.0,112900.0,0.03224]
[1754180152720,0.55645141,112910.0,112900.0,0.03224]
[1754180152962,0.52981341,112910.0,112900.0,0.03224]
[1754180154131,0.52981341,112910.0,112900.0,0.06824]
[1754180154921,0.02981341,112910.0,112900.0,0.06824]
[1754180156724,0.02981341,112910.0,112900.0,0.15687284]
[1754180156900,0.01594697,112910.0,112900.0,0.15908718]
[1754180157531,0.01594697,112910.0,112900.0,0.1765362]
[1754180158150,0.01594697,112910.0,112900.0,0.1795362]
[1754180158356,0.01594697,112910.0,112900.0,0.17732186]
[1754180158560,0.01494697,112910.0,112900.0,0.17732186]
[1754180158799,2.171235,112930.0,112900.0,0.17732186]
[1754180159002,1.671235,112930.0,112910.0,0.22980699]
[1754180159213,0.0139438,112930.0,112920.0,0.002]
[1754180159445,0.5139438,112930.0,112920.0,0.12047284]
[1754180159654,1.671235,112930.0,112920.0,0.12047284]
[1754180161308,0.04037457,112940.0,112920.0,0.12047284]
[1754180161543,0.04051796,112940.0,112930.0,0.13892]
[1754180161803,0.04355796,112940.0,112930.0,0.13892]
[1754180162048,0.04567796,112940.0,112930.0,0.13892]
[1754180162763,0.04667796,112940.0,112930.0,0.13892]
[1754180163694,0.06063038,112940.0,112930.0,0.13892]
[1754180164657,0.05759038,112940.0,112930.0,0.13892]
[1754180164886,0.02896038,112940.0,112930.0,0.17076]
[1754180165139,0.01509581,112940.0,112930.0,0.2616066]
[1754180165375,0.01509581,112940.0,112930.0,0.25939284]
[1754180165606,0.01409581,112940.0,112930.0,0.25939284]
[1754180165840,0.01409581,112940.0,112930.0,0.26139284]
[1754180166089,0.01409581,112940.0,112930.0,0.26339284]
[1754180166811,0.01409581,112940.0,112930.0,0.28084186]
[1754180167781,0.00014339,112940.0,112930.0,0.28084186]
[1754180168229,0.00014339,112940.0,112930.0,0.27884186]
[1754180168722,0.00014339,112940.0,112930.0,0.28084186]
[1754180168982,0.00014339,112940.0,112930.0,0.28484186]
[1754180170953,0.52651,112980.0,112940.0,0.35744902]
[1754180171185,0.01386008,112970.0,112950.0,0.2593662]
[1754180171392,0.01386008,112970.0,112960.0,0.002]
[1754180171601,0.01386008,112970.0,112960.0,0.03184]
[1754180172477,0.02752075,112970.0,112960.0,0.03184]
[1754180173125,0.02752075,112970.0,112960.0,0.12047284]
[1754180173325,0.02752075,112970.0,112960.0,0.12268601]
[1754180173808,0.01366067,112970.0,112960.0,0.12268601]
[1754180174331,0.54072672,112980.0,112960.0,0.12047284]
[1754180174940,0.54072672,112980.0,112960.0,0.12147284]
[1754180175366,0.38072672,112980.0,112970.0,0.13868]
[1754180175585,0.38144672,112980.0,112960.0,0.22731284]
[1754180175793,0.02651,112970.0,112960.0,0.22731284]
[1754180175992,0.02695,112970.0,112960.0,0.22731284]
[1754180176204,0.00028,112980.0,112960.0,0.22731284]
[1754180176410,0.52215279,112980.0,112960.0,0.25394284]
[1754180176624,0.50954054,112980.0,112960.0,0.25715284]
[1754180176828,0.50954054,112980.0,112960.0,0.25394284]
[1754180177880,0.50854054,112980.0,112960.0,0.25394284]
[1754180178087,0.51574054,112980.0,112960.0,0.25394284]
[1754180178307,0.51574054,112980.0,112960.0,0.25494284]
[1754180178736,0.0072,112970.0,112960.0,0.13864]
[1754180179415,0.02932165,112970.0,112960.0,0.13864]
[1754180179628,0.02105984,112970.0,112960.0,0.13864]
[1754180179846,0.01385984,112970.0,112960.0,0.16527]
[1754180180063,0.01385984,112970.0,112960.0,0.17048]
[1754180181190,0.35385984,112970.0,112960.0,0.17148]
[1754180181406,0.36212412,112970.0,112960.0,0.17148]
[1754180181847,0.36212412,112970.0,112960.0,0.17248]
[1754180182994,0.02212412,112970.0,112960.0,0.17248]
[1754180183897,0.02212758,112970.0,112960.0,0.26111284]
[1754180184325,0.01385984,112970.0,112960.0,0.26111284]
[1754180184735,0.01346958,112980.0,112960.0,0.26111284]
[1754180185005,0.01346958,112980.0,112960.0,0.23127284]
[1754180185214,1.671235,112980.0,112970.0,0.02944]
[1754180185418,1.671235,112980.0,112970.0,0.02623]
[1754180185628,0.00993,112980.0,112960.0,0.25771284]
[1754180186256,0.00993,112980.0,112960.0,0.25671284]
[1754180186482,0.00993,112980.0,112960.0,0.22727284]
[1754180186902,0.0182048,112980.0,112960.0,0.25350284]
[1754180187109,0.0182048,112980.0,112960.0,0.25671284]
[1754180187319,0.03209085,112980.0,112960.0,0.25671284]
[1754180187540,0.02381605,112980.0,112960.0,0.25671284]
[1754180187746,0.02774532,112980.0,112970.0,0.03147]
[1754180188368,0.03602457,112980.0,112970.0,0.03147]
[1754180192040,0.37602457,112980.0,112970.0,0.03147]
[1754180192302,0.39260351,112980.0,112970.0,0.03147]
[1754180193558,0.37602457,112980.0,112970.0,0.03147]
[1754180194863,0.03602457,112980.0,112970.0,0.12010284]
[1754180195139,0.0221653,112980.0,112970.0,0.19302779]
[1754180195363,0.0221653,112980.0,112970.0,0.19081482]
[1754180196069,0.0221653,112980.0,112970.0,0.19181482]
[1754180196798,0.0221653,112980.0,112970.0,0.21126384]
[1754180197567,0.0221653,112980.0,112970.0,0.21326384]
[1754180198065,0.00827925,112980.0,112970.0,0.21326384]
[1754180199292,0.0002,112990.0,112980.0,0.01744902]
[1754180199550,0.0003433,112990.0,112980.0,0.24697464]
[1754180199790,0.0003433,112990.0,112980.0,0.27623186]
[1754180200650,0.0003433,112990.0,112980.0,0.27723186]
[1754180202305,0.0003433,112990.0,112980.0,0.27823186]
[1754180202519,0.34,113020.0,112980.0,0.27823186]
[1754180202852,0.36213837,113020.0,112990.0,0.12028542]
[1754180203121,0.36213837,113020.0,113000.0,0.13872]
[1754180203371,0.36213837,113020.0,113000.0,0.22735284]
[1754180203624,0.03206837,113020.0,113000.0,0.25679284]
[1754180204174,0.03306837,113020.0,113000.0,0.25679284]
[1754180205186,0.03506837,113020.0,113000.0,0.11807284]
[1754180205557,0.37601629,113010.0,113000.0,0.13872]
[1754180205734,1.49277,113000.0,112990.0,0.13872]
[1754180205917,1.49277,113000.0,112980.0,0.16816]
[1754180205918,1.50105365,113000.0,112980.0,0.16816]
[1754180206180,1.50105365,113000.0,112970.0,0.02944]
[1754180206181,0.00993,112990.0,112970.0,0.02944]
[1754180206391,0.00993,112990.0,112980.0,0.13872]
[1754180206603,0.01820914,112990.0,112980.0,0.13872]
[1754180207109,0.01820914,112990.0,112980.0,0.13972]
[1754180207544,0.84827914,112990.0,112980.0,0.13972]
[1754180207761,0.34827914,112990.0,112980.0,0.17119]
[1754180208405,0.34827914,112990.0,112980.0,0.25882284]
[1754180208620,0.34827914,112990.0,112980.0,0.25982284]
[1754180209590,0.34827914,112990.0,112980.0,0.12007284]
[1754180209824,0.34827914,112990.0,112980.0,0.22931284]
[1754180210220,0.34828209,112990.0,112980.0,0.22931284]
[1754180211046,0.34828209,112990.0,112980.0,0.25554284]
[1754180211593,0.00828209,112990.0,112980.0,0.25875284]
[1754180213257,0.523786,113000.0,112980.0,0.25875284]
[1754180213473,0.53207313,113000.0,112980.0,0.25875284]
[1754180213914,0.01237,112990.0,112980.0,0.14068]
[1754180214128,0.02065713,112990.0,112980.0,0.14068]
[1754180214342,0.026226,113000.0,112980.0,0.13968]
[1754180214577,1.49277,112990.0,112980.0,0.16491]
[1754180215225,1.49277,112990.0,112980.0,0.16691]
[1754180215446,1.49277,112990.0,112980.0,0.16984]
[1754180215673,1.49277,112990.0,112980.0,0.16884]
[1754180215906,0.026618,112990.0,112980.0,0.16884]
[1754180216105,0.026618,112990.0,112980.0,0.16984]